Cogmind - Beta 13 @@@ ROGUE MODE // 2024.05.03 @ 17:42:04 Player: Exceptionally Mediocre Result: Destroyed by as-07319 with Assembled Blade Performance ------------- Evolutions (0) 0 Regions Visited (2) 400 Robots Destroyed (24) 120 Value Destroyed (462) 462 Prototype IDs (3) 60 Alien Tech Used (0) 0 Bonus (0) 0 TOTAL SCORE: 1042 Bonus ------- None Cogmind --------- Core Integrity 0/250 Matter 220/300 Energy 112/125 System Corruption 11% Temperature Cool (19) Movement Treading (480) Ox4 Location -10/Mines Parts ------- > --- POWER (1) -------- Light Ion Engine > --- PROPULSION (2) --- Light Treads > --- UTILITY (2) ------ Huge Storage Unit Core Shielding > --- WEAPON (2) ------- Assault Rifle Assault Rifle > --- INVENTORY (25) --- Light Ion Engine Light Nuclear Core Light Treads Light Treads Flight Unit Flight Unit Flight Unit Flight Unit Flight Unit Heat Sink Improved Heat Sink Targeting Computer Targeting Computer Propulsion Shielding Utility Shielding Weapon Shielding Light Armor Plating Particle Gun Particle Gun Assault Rifle Mining Laser Peak State ------------ > --- POWER ------------ Light Ion Engine > --- PROPULSION ------- Light Treads Light Treads > --- UTILITY ---------- Huge Storage Unit Targeting Computer > --- WEAPON ----------- Assault Rifle Assault Rifle > --- INVENTORY -------- Light Ion Engine Light Ion Engine Light Nuclear Core Light Treads Light Treads Light Treads Flight Unit Flight Unit Flight Unit Flight Unit Flight Unit Heat Sink Heat Sink Improved Heat Sink Targeting Computer Targeting Computer Utility Shielding Light Armor Plating Small Laser Particle Gun Particle Gun Assault Rifle Grenade Launcher Mining Laser [Rating: 10] Favorites ----------- Power Light Ion Engine Engine Light Ion Engine Propulsion Light Treads Treads Light Treads Utility Targeting Computer Storage Huge Storage Unit Processor Targeting Computer Protection Core Shielding Weapon Assault Rifle Ballistic Gun Assault Rifle Launcher Grenade Launcher Build | -11 -10 -10 ------- Run | Yrd Mat Min Slots Evolved . | . . . Power . | . . . Propulsion . | . . . Utility . | . . . Weapon . | . . . Parts Attached 18 | 6 7 5 Power 4 | 1 2 1 Engine 4 | 1 2 1 Core . | . . . Reactor . | . . . Propulsion 4 | 2 1 1 Treads 4 | 2 1 1 Leg . | . . . Wheel . | . . . Hover . | . . . Flight . | . . . Utility 5 | 1 3 1 Device . | . . . Storage 3 | 1 2 . Processor 1 | . 1 . Hackware . | . . . Protection 1 | . . 1 Artifact . | . . . Weapon 5 | 2 1 2 Energy Gun . | . . . Energy Cannon . | . . . Ballistic Gun 4 | 2 1 1 Ballistic Cannon . | . . . Launcher 1 | . . 1 Special Weapon . | . . . Impact Weapon . | . . . Slashing Weapon . | . . . Piercing Weapon . | . . . Special Melee Weapon . | . . . Unidentified Prototypes . | . . . Parts Lost 7 | . 2 5 Power 2 | . 1 1 Propulsion 3 | . 1 2 Utility 1 | . . 1 Weapon 1 | . . 1 Highest Loss Streak 5 | . 2 5 To Critical Strikes . | . . . Average Slot Usage (%) 98 | . 99 98 Engine 13 | . 13 13 Treads 27 | . 28 27 Storage 14 | . 14 14 Processor 13 | . 13 13 Ballistic Gun 27 | . 27 27 Naked Turns . | . . . Heaviest Build 87 | 12 87 87 Greatest Support 40 | 40 40 40 Greatest Overweight (x) 3 | 3 2 2 Average Overweight (x) 1 | . 1 2 Largest Inventory Capacity 25 | 8 25 25 Average Capacity 21 | 7 22 25 Most Carried 25 | 3 15 25 Average Carried 12 | 1 10 20 Final Capacity 25 | 8 25 25 Final Carried 21 | 3 15 21 Class Distribution -------------------- 100% | Mutant Dominant Class ---------------- Mutant | -10/Materials Mutant | -10/Mines Resources | -11 -10 -10 ----------- Run | Yrd Mat Min Matter Collected 698 | 238 359 101 Remotely . | . . . Salvage Created 780 | 60 568 152 Parts 54 | 7 42 5 Haulers Intercepted 1 | . 1 . Recyclers Shooed 2 | 1 1 . Parts Field Recycled . | . . . Retrieved Matter . | . . . Parts Self-Destructed . | . . . Prevented . | . . . Kills | -11 -10 -10 ------- Run | Yrd Mat Min Combat Hostiles Destroyed 21 | . 10 11 Guns 14 | . 10 4 AOE 7 | . . 7 Classes Destroyed 8 | 2 5 1 Worker 4 | 2 2 . Tunneler 1 | 1 . . Hauler 1 | . 1 . Recycler 1 | . 1 . Watcher 3 | . 3 . Swarmer 5 | . 3 2 Grunt 9 | . 7 2 Assembled 7 | . . 7 Best Kill Streak 7 | 2 3 7 Combat Bots Only 7 | . 3 7 Max Kills in Single Turn 5 | 1 1 5 Gunslinging . | . . . Exploded 5 | . . 5 Melee . | . . . Uniques/NPCs Destroyed . | . . . Combat | -11 -10 -10 -------- Run | Yrd Mat Min Hostile Shots Fired 98 | . 58 40 Missed 22 | . 18 4 Damage Taken 1139 | . 483 656 Core 256 | . 62 194 Absorbed by Shields . | . . . Redirected to Shielding 19 | . . 19 Regen/Repaired (Parts) 81 | . 81 . Core Remaining (%) 100 | 100 . . Volleys Fired 68 | 7 46 15 Largest 2 | 2 2 2 Hottest 50 | 40 40 50 Shots Fired 136 | 14 92 30 Gun 133 | 14 92 27 Cannon . | . . . Launcher 3 | . . 3 Special . | . . . Kinetic 133 | 14 92 27 Thermal . | . . . Explosive 3 | . . 3 Electromagnetic . | . . . Robot Hit Streak 14 | 2 14 8 Robot Miss Streak 5 | 5 3 2 Penetration Max . | . . . Secondary Targets 1 | . 1 . Max Gunslinging Chain 1 | . 1 . Shots Hit Robots 89 | 4 67 18 Core Hits 53 | 3 28 22 Critical Kills 1 | . . 1 Critical Parts Destroyed . | . . . Critical Strikes 1 | . . 1 Destroy 1 | . . 1 Melee Attacks . | . . . Impact . | . . . Slashing . | . . . Piercing . | . . . Sneak Attacks . | . . . Combat Hostiles . | . . . Follow-up Attacks . | . . . Damage Inflicted 1532 | 46 836 650 Guns 1096 | 46 836 214 Cannons . | . . . Explosions 436 | . . 436 Melee . | . . . Ramming . | . . . Kinetic 1096 | 46 836 214 Thermal . | . . . Explosive 436 | . . 436 Electromagnetic . | . . . Impact . | . . . Slashing . | . . . Piercing . | . . . Highest Corruption 11 | . . 11 Average Corruption 9 | . . 9 Corruption Purged . | . . . Corruption Blocked . | . . . Overload Shots . | . . . Overflow Damage 19 | . . 19 Projectiles . | . . . Explosions 19 | . . 19 Melee . | . . . Knockbacks . | . . . Impact . | . . . Kinetic . | . . . Secondary . | . . . Self-Inflicted Damage 34 | . . 34 Shots 2 | . . 2 Rammed . | . . . Targets Rammed . | . . . Kicked . | . . . Crushed . | . . . Highest Temperature 26 | . 8 26 Average Temperature 8 | . 2 13 Received Heat Transfer 463 | . 261 202 Siege Activations . | . . . Robots Corrupted . | . . . Combat Hostiles . | . . . Parts Fried . | . . . Impact Corruptions . | . . . Robots Melted . | . . . Combat Hostiles . | . . . Parts Melted . | . . . Heat Transferred . | . . . Parts Sabotaged . | . . . Parts Stolen . | . . . Parts Stripped . | . . . Power Chain Reactions . | . . . Alert | -11 -10 -10 ------- Run | Yrd Mat Min Peak Influence 162 | 15 134 162 Initial 27 | . 9 27 Average 75 | 3 61 141 Maximum Alert Level . | . . . Low Security (%) 100 | 100 100 100 Level 1 . | . . . Level 2 . | . . . Level 3 . | . . . Level 4 . | . . . Level 5 . | . . . High Security . | . . . Max Security . | . . . Squads Dispatched 1 | . 1 . Investigation 1 | . 1 . Extermination . | . . . Reinforcement . | . . . Assault . | . . . Garrison . | . . . Intercept . | . . . Searches Triggered . | . . . Construction Impeded . | . . . Haulers Reinforced . | . . . Active Scanning Responses . | . . . Cargo Convoy Interrupts . | . . . Stealth | -11 -10 -10 --------- Run | Yrd Mat Min Distress Signals 1 | . . 1 Communications Jammed . | . . . Distress Signals . | . . . Times Spotted 32 | . 13 19 Peak Tracking Total 9 | . 3 9 Tactical Retreats 1 | . . 1 Traps | -11 -10 -10 ------- Run | Yrd Mat Min Traps Triggered 1 | . 1 . Indirectly . | . . . Trap Hack Attempts . | . . . Triggered . | . . . Disarmed . | . . . Reprogrammed . | . . . Reused . | . . . Traps Extracted . | . . . Installed . | . . . Triggered . | . . . Machines | -11 -10 -10 ---------- Run | Yrd Mat Min Machines Disabled . | . . . Max in Single Turn . | . . . Machines Repaired . | . . . Machines Dismantled . | . . . Machines Sabotaged . | . . . Overloaded Fab Kills . | . . . Hacking | -11 -10 -10 --------- Run | Yrd Mat Min Machines Accessed 5 | . 5 . Terminals 3 | . 3 . Fabricators . | . . . Repair Stations 1 | . 1 . Recycling Units 1 | . 1 . Scanalyzers . | . . . Garrison Access . | . . . Total Hacks 13 | . 13 . Successful 10 | . 10 . Failed 3 | . 3 . Catastrophic . | . . . Database Lockouts . | . . . Manual 7 | . 7 . Terminals 10 | . 10 . Fabricators . | . . . Repair Stations 2 | . 2 . Recycling Units 1 | . 1 . Scanalyzers . | . . . Garrison Access . | . . . Terminal Hacks 4 | . 4 . Prototype ID Bank 2 | . 2 . Branch Access Points 1 | . 1 . Terminal Index 1 | . 1 . Fabricator Hacks . | . . . Repair Station Hacks 2 | . 2 . Scan Component 1 | . 1 . Repair 1 | . 1 . Recycling Unit Hacks 1 | . 1 . Retrieve Components 1 | . 1 . Scanalyzer . | . . . Garrison Access Hacks . | . . . Unauthorized Hacks 3 | . 3 . Terminals 3 | . 3 . Botnet 3 | . 3 . Fabricators . | . . . Repair Stations . | . . . Recycling Units . | . . . Scanalyzers . | . . . Garrison Access . | . . . Data Cores Recovered . | . . . Used . | . . . Hacking Detections 3 | . 3 . Full Trace Events . | . . . Feedback Events . | . . . Feedback Blocked . | . . . Robot Schematics Acquired . | . . . Robots Built . | . . . Authchips . | . . . Time . | . . . Total Robot Build Rating . | . . . Part Schematics Acquired . | . . . Parts Built . | . . . Authchips . | . . . Time . | . . . Total Part Build Rating . | . . . Parts Repaired 1 | . 1 . Time 26 | . 26 . Parts Recycled . | . . . Recycled Matter . | . . . Retrieved Matter . | . . . Retrieved Components 10 | . 10 . Parts Scanalyzed . | . . . Part Schematics Acquired . | . . . Parts Damaged . | . . . Bothacking | -11 -10 -10 ------------ Run | Yrd Mat Min Used RIF Installer . | . . . Robots Hacked . | . . . Non-combat . | . . . Combat . | . . . Robot Hacks Applied . | . . . Relay Couplers Released . | . . . Fabnet Peak Effective % . | . . . Robots Rewired . | . . . Allies Hacked . | . . . Hacks Repelled . | . . . Allies | -11 -10 -10 -------- Run | Yrd Mat Min Total Allies . | . . . Largest Group . | . . . Highest-Rated Group . | . . . Highest-Rated Ally . | . . . Total Orders . | . . . Ally Attacks . | . . . Total Damage . | . . . Kills . | . . . Allies Corrupted . | . . . Allies Melted . | . . . Intel | -11 -10 -10 ------- Run | Yrd Mat Min Robot Analysis Total . | . . . Derelict Logs Recovered . | . . . Drone Launches . | . . . Drone Recoveries . | . . . Exploration | -11 -10 -10 ------------- Run | Yrd Mat Min Turns Passed 1572 | 135 1068 369 Spaces Moved 484 | 71 318 95 Core 16 | 16 . . Treads 468 | 55 318 95 Legs . | . . . Wheels . | . . . Hover . | . . . Flight . | . . . Fastest Speed 50 | 50 160 320 Average Speed 265 | 145 276 320 Slowest Speed 320 | 200 320 320 Overloaded Moves . | . . . Propulsion Burnouts . | . . . Robots Hopped . | . . . Cave-ins Triggered . | . . . Exploration Rate (%) 34 | 7 72 25 Regions Visited 2 Branch Regions 1 Pre-discovered Areas . | . . . Known Exits Taken 1 | . 1 . Unknown Exits Taken 1 | 1 . . Scrap Searched . | . . . Spaces Dug . | . . . Terrain Destroyed 23 | . . 23 Melee . | . . . Projectile . | . . . AOE 23 | . . 23 Terrain Rammed . | . . . Walls Destroyed . | . . . Machines Disabled . | . . . Actions | -11 -10 -10 --------- Run | Yrd Mat Min Total 636 | 86 419 131 Wait 26 | . 26 . Move 482 | 70 317 95 Hop . | . . . Pick Up 32 | 3 16 13 Fast Attach 10 | 6 4 . Attach 6 | . 2 4 Detach 2 | . 2 . Swap 2 | . 1 1 Drop 8 | . 5 3 Fire 68 | 7 46 15 Melee . | . . . Ram . | . . . Kick . | . . . Crush . | . . . Escape Stasis . | . . . Rewire . | . . . Trap . | . . . Miscellaneous . | . . . Route ------- -11/Scrapyard -10/Materials (discovered 2 exits: [*Mat] / *Min) -10/Mines (discovered 1 exit: [*Mat]) History --------- Turn | Location | Event 18 | -11/Scrapyard | Discovered new exit (range 16) 136 | -11/Scrapyard | Entered Materials 149 | -10/Materials | Identified exit to Mines 314 | -10/Materials | Build established: Mutant 862 | -10/Materials | Discovered new exit (range 14) 1006 | -10/Materials | Repaired Assault Rifle 1204 | -10/Materials | Entered Mines 1309 | -10/Mines | Discovered new exit (range 7) 1383 | -10/Mines | Joined a pair of Derelicts in attacking an 0b10 outpost 1544 | -10/Mines | Assembled infested the area 1560 | -10/Mines | System corruption reached 10% 1567 | -10/Mines | Core integrity fell below 50% 1571 | -10/Mines | Core integrity fell below 20% 1573 | -10/Mines | Destroyed by as-07319 with Assembled Blade Last Messages --------------- 01462_ R-06 Scavenger collects Sml. Laser. 01467_ Acquired 6 matter. 01544_ ALERT: Infestation in the mines, dispatching Demolisher response squad. 01553_ Lgt. Ion Engine destroyed. 01553_ Lgt. Treads destroyed. 01553_ System corrupted by crushing effect (+5). 01553_ System corrupted by crushing effect (+1). 01557_ as-71822 destroyed. 01557_ as-74723 destroyed. 01559_ Targeting Computer destroyed. 01559_ System corrupted by crushing effect (+5). 01560_ Destroyed Asb. F-torch. 01560_ as-33117 destroyed. 01560_ as-31740 destroyed. 01560_ as-49294 destroyed. 01560_ as-10493 destroyed. 01560_ as-96828 destroyed. 01568_ Grenade Launcher destroyed. 01568_ Lgt. Treads destroyed. Map ----- +----------------------------------------------------+ | ??????# #??? #????????????????????? | | ??????### #??? #????????????????????? | | ???????## #### ########?????????????? | | ??????## $ ????????????? | | ???#### = ????????????? | | ??## !## ####???????????????? | | ??#% # ##?????????????????? | | ??# + ##????????????????? | | ??#% + ##???????????????? | | ??#" !# #???????????????? | | ??##||## #???????????????? | | ???####### #???????????????? | | ??######## #??????????????? | | ?## # ## ???????????? | | ?# ##?##### ??????????? | | ?# ##????????######???????????? | | ??# ##?????????????????????????? | | ??## ##????????????????????????? | | ???# ##???????????????????????? | | ???## ##??????????????????????? | | ????## #??????????????????????? | | ?????# #??????????????????????? | | ?????## #??????????????????????? | | ??????#### #??????????????????????? | | ?????????## ##?????????????????????? | | ??????????## @a#?????????????????????? | | ???????????# aa ??????????????????? | | ??????????# a #????????????????? | | ??????????# #????????????????? | | ??????????## ##????????????????? | | ???????????# ????????????????? | | ???????????# a#???????????????? | | ???????????### ## #???????????????? | | ??????????????# ##? #???????????????? | | ???????????????###???#???????????????? | | ?????????????????????????????????????? | | ?????????????????????????????????????? | | ?????????????????????????????????????? | | ?????????????????????????????????????? | | ?????????????????????????????????????? | | ?????????????????????????????????????? | | ?????????????????????????????????????? | | ?????????????????????????????????????? | | ?????????????????????????????????????? | | ?????????????????????????????????????? | | ?????????????????????????????????????? | | ?????????????????????????????????????? | | ?????????????????????????????????????? | | ?????????????????????????????????????? | | ?????????????????????????????????????? | +----------------------------------------------------+ Best States ------------- Heat Dissipation 25 Energy Generation 10 Energy Capacity 125 Matter Stores 300 Matter Capacity 300 Sight Range 16 Terrain Scan Density 10 Core Shielding 20 Evasion (%) 40 Targeting Accuracy 5 Recoil Reduction 2 Item Schematics ----------------- None Robot Schematics ------------------ None Fabricated ------------ Nothing Alien Tech Used ----------------- None Achievements -------------- None Challenges ------------ None Game ------ Seed ModifiedChromaticArray Manual? 0 Play Time 00:10:10 Cumulative 149.8 hours Start 2024.05.03 @ 17:34:11 End 2024.05.03 @ 17:42:04 Sessions 1 Manual Loads 0 Difficulty Rogue Special Mode None Game No. 168 Rogue 168 Adventurer 0 Explorer 0 Win Type - Total 0 Types 0/0/0/0/0/0/0/0/0 Lore% 33 Gallery% 59 Achievement% 41 Wizard Run 0 Options --------- Layout 1 ASCII 0 Keyboard 1 Movement Vi Keybinds 0 Fullscreen 1 Font 24/Smallcaps Map View 50x35 Zoom Use 0% Tactical HUD 1 Map Filters NONE Filters NONE Steam 1 RUN: 3ec193b9-627e-4dbc-b656-98d3d3dde6f8